[Event "Titled Tuesday Blitz June 13 Early 2023"]
[White "Shuvalova, Polina"]
[Black "Fieberg, Samuel"]
[WhiteFideId "24171760"]
[BlackFideId "12901717"]
[WhiteElo "2281"]
[BlackElo "2540"]
[Result "1/2-1/2"]
[Round "2"]
[TimeControl "180+2"]
[Date "2023.06.13"]
[WhiteClock "0:00:02"]
[BlackClock "0:00:04"]
[Board "70"]

1. e4 {[%clk 0:03:00]}  e6 {[%clk 0:02:59]} 2. d4 {[%clk 0:03:00]}  d5 {[%clk 0:03:00]} 3. exd5 {[%clk 0:03:01]}  exd5 {[%clk 0:02:59]} 4. Nf3 {[%clk 0:03:01]}  Nc6 {[%clk 0:03:00]} 5. Bd3 {[%clk 0:02:58]}  Bd6 {[%clk 0:03:00]} 6. c3 {[%clk 0:02:58]}  Nge7 {[%clk 0:02:59]} 7. O-O {[%clk 0:02:58]}  Bf5 {[%clk 0:02:55]} 8. Re1 {[%clk 0:02:57]}  Qd7 {[%clk 0:02:53]} 9. Bg5 {[%clk 0:02:56]}  f6 {[%clk 0:02:53]} 10. Bh4 {[%clk 0:02:51]}  O-O-O {[%clk 0:02:45]} 11. Bg3 {[%clk 0:02:50]}  Bxg3 {[%clk 0:02:41]} 12. hxg3 {[%clk 0:02:50]}  Bg4 {[%clk 0:02:26]} 13. Nbd2 {[%clk 0:02:49]}  h5 {[%clk 0:02:26]} 14. Qc2 {[%clk 0:02:44]}  Nf5 {[%clk 0:02:22]} 15. Nf1 {[%clk 0:02:38]}  h4 {[%clk 0:02:15]} 16. N1h2 {[%clk 0:02:37]}  Nd6 {[%clk 0:01:48]} 17. Nxg4 {[%clk 0:02:14]}  Qxg4 {[%clk 0:01:49]} 18. Nxh4 {[%clk 0:02:14]}  Rxh4 {[%clk 0:01:15]} 19. gxh4 {[%clk 0:02:12]}  Rh8 {[%clk 0:01:09]} 20. g3 {[%clk 0:01:57]}  g5 {[%clk 0:01:00]} 21. Qe2 {[%clk 0:01:56]}  Qxe2 {[%clk 0:00:39]} 22. Rxe2 {[%clk 0:01:51]}  gxh4 {[%clk 0:00:39]} 23. Kg2 {[%clk 0:01:48]}  hxg3 {[%clk 0:00:39]} 24. fxg3 {[%clk 0:01:46]}  Kd7 {[%clk 0:00:39]} 25. Rf1 {[%clk 0:01:45]}  Rh6 {[%clk 0:00:37]} 26. Ref2 {[%clk 0:01:44]}  Ne8 {[%clk 0:00:31]} 27. Rh1 {[%clk 0:01:44]}  Rxh1 {[%clk 0:00:30]} 28. Kxh1 {[%clk 0:01:45]}  Ne7 {[%clk 0:00:27]} 29. Kg2 {[%clk 0:01:45]}  c6 {[%clk 0:00:28]} 30. Rf1 {[%clk 0:01:45]}  Ke6 {[%clk 0:00:26]} 31. Re1+ {[%clk 0:01:44]}  Kf7 {[%clk 0:00:27]} 32. Rh1 {[%clk 0:01:45]}  Nd6 {[%clk 0:00:27]} 33. g4 {[%clk 0:01:42]}  Ke6 {[%clk 0:00:27]} 34. Re1+ {[%clk 0:01:41]}  Kf7 {[%clk 0:00:27]} 35. Kf3 {[%clk 0:01:41]}  a5 {[%clk 0:00:25]} 36. a4 {[%clk 0:01:40]}  Ne8 {[%clk 0:00:23]} 37. Rh1 {[%clk 0:01:39]}  Nd6 {[%clk 0:00:23]} 38. Kf4 {[%clk 0:01:38]}  Ke6 {[%clk 0:00:23]} 39. Bf5+ {[%clk 0:01:36]}  Nexf5 {[%clk 0:00:15]} 40. gxf5+ {[%clk 0:01:36]}  Ke7 {[%clk 0:00:16]} 41. Rh7+ {[%clk 0:01:35]}  Nf7 {[%clk 0:00:17]} 42. Rh2 {[%clk 0:01:30]}  Nd6 {[%clk 0:00:16]} 43. Re2+ {[%clk 0:01:30]}  Kf7 {[%clk 0:00:15]} 44. Re6 {[%clk 0:01:27]}  Nc4 {[%clk 0:00:15]} 45. Re2 {[%clk 0:01:22]}  Nd6 {[%clk 0:00:15]} 46. Rh2 {[%clk 0:01:19]}  Ke7 {[%clk 0:00:15]} 47. b3 {[%clk 0:01:17]}  Ke8 {[%clk 0:00:13]} 48. Rh8+ {[%clk 0:01:15]}  Kd7 {[%clk 0:00:11]} 49. Rh7+ {[%clk 0:01:15]}  Ke8 {[%clk 0:00:10]} 50. Kg4 {[%clk 0:01:00]}  Kd8 {[%clk 0:00:10]} 51. Rh8+ {[%clk 0:00:52]}  Kd7 {[%clk 0:00:10]} 52. Ra8 {[%clk 0:00:53]}  b6 {[%clk 0:00:09]} 53. Ra7+ {[%clk 0:00:52]}  Ke8 {[%clk 0:00:08]} 54. Ra6 {[%clk 0:00:52]}  Nc8 {[%clk 0:00:08]} 55. Ra8 {[%clk 0:00:50]}  Kd7 {[%clk 0:00:08]} 56. Rxc8 {[%clk 0:00:44]}  Kxc8 {[%clk 0:00:09]} 57. Kh5 {[%clk 0:00:44]}  Kd8 {[%clk 0:00:08]} 58. Kg6 {[%clk 0:00:44]}  Ke7 {[%clk 0:00:08]} 59. Kg7 {[%clk 0:00:44]}  c5 {[%clk 0:00:09]} 60. Kg6 {[%clk 0:00:34]}  c4 {[%clk 0:00:10]} 61. bxc4 {[%clk 0:00:32]}  dxc4 {[%clk 0:00:10]} 62. d5 {[%clk 0:00:28]}  b5 {[%clk 0:00:11]} 63. axb5 {[%clk 0:00:22]}  a4 {[%clk 0:00:11]} 64. b6 {[%clk 0:00:23]}  Kd7 {[%clk 0:00:11]} 65. Kxf6 {[%clk 0:00:21]}  a3 {[%clk 0:00:12]} 66. b7 {[%clk 0:00:21]}  Kc7 {[%clk 0:00:12]} 67. Ke7 {[%clk 0:00:15]}  a2 {[%clk 0:00:11]} 68. d6+ {[%clk 0:00:15]}  Kxb7 {[%clk 0:00:11]} 69. d7 {[%clk 0:00:16]}  a1=Q {[%clk 0:00:11]} 70. d8=Q {[%clk 0:00:16]}  Qxc3 {[%clk 0:00:12]} 71. Qd5+ {[%clk 0:00:13]}  Kb6 {[%clk 0:00:11]} 72. f6 {[%clk 0:00:14]}  Qb4+ {[%clk 0:00:09]} 73. Ke8 {[%clk 0:00:04]}  c3 {[%clk 0:00:08]} 74. f7 {[%clk 0:00:04]}  c2 {[%clk 0:00:07]} 75. Qe6+ {[%clk 0:00:04]}  Kb7 {[%clk 0:00:03]} 76. Qd5+ {[%clk 0:00:03]}  Kb8 {[%clk 0:00:02]} 77. Qd8+ {[%clk 0:00:03]}  Kb7 {[%clk 0:00:02]} 78. Qd7+ {[%clk 0:00:03]}  Kb8 {[%clk 0:00:03]} 79. Qd8+ {[%clk 0:00:03]}  Kb7 {[%clk 0:00:03]} 80. Qd5+ {[%clk 0:00:04]}  Kb8 {[%clk 0:00:03]} 81. Qe5+ {[%clk 0:00:04]}  Kb7 {[%clk 0:00:04]} 82. Qd5+ {[%clk 0:00:02]} 1/2-1/2


[Site "https://www.chess.com"]

[Event "Titled Tuesday Blitz June 13 Early 2023"]
[White "Kochiev, Ivan"]
[Black "Klukin, Kirill"]
[WhiteFideId "2917890"]
[BlackFideId "24199273"]
[WhiteElo "2287"]
[BlackElo "2344"]
[Result "1-0"]
[Round "2"]
[TimeControl "180+2"]
[Date "2023.06.13"]
[WhiteClock "0:00:06"]
[BlackClock "0:00:06"]
[Board "73"]

1. e4 {[%clk 0:02:53]}  d6 {[%clk 0:02:57]} 2. d4 {[%clk 0:02:53]}  f5 {[%clk 0:02:57]} 3. Nc3 {[%clk 0:02:31]}  Nf6 {[%clk 0:02:57]} 4. Bd3 {[%clk 0:02:30]}  Nc6 {[%clk 0:02:57]} 5. Nge2 {[%clk 0:02:29]}  e5 {[%clk 0:02:53]} 6. exf5 {[%clk 0:02:24]}  Nxd4 {[%clk 0:02:43]} 7. Nxd4 {[%clk 0:02:22]}  exd4 {[%clk 0:02:44]} 8. Ne2 {[%clk 0:02:23]}  c5 {[%clk 0:02:44]} 9. O-O {[%clk 0:02:21]}  Be7 {[%clk 0:02:44]} 10. c3 {[%clk 0:02:01]}  dxc3 {[%clk 0:02:44]} 11. Nxc3 {[%clk 0:02:02]}  d5 {[%clk 0:02:41]} 12. Re1 {[%clk 0:01:40]}  O-O {[%clk 0:02:38]} 13. Bg5 {[%clk 0:01:13]}  c4 {[%clk 0:02:25]} 14. Bf1 {[%clk 0:01:06]}  Bxf5 {[%clk 0:02:10]} 15. Re5 {[%clk 0:00:43]}  Bg6 {[%clk 0:01:00]} 16. Nxd5 {[%clk 0:00:33]}  Nxd5 {[%clk 0:00:44]} 17. Rxd5 {[%clk 0:00:21]}  Bxg5 {[%clk 0:00:44]} 18. Rxd8 {[%clk 0:00:20]}  Raxd8 {[%clk 0:00:45]} 19. Bxc4+ {[%clk 0:00:20]}  Kh8 {[%clk 0:00:46]} 20. Qb3 {[%clk 0:00:18]}  Bf6 {[%clk 0:00:43]} 21. h3 {[%clk 0:00:16]}  Bd4 {[%clk 0:00:43]} 22. Rf1 {[%clk 0:00:15]}  b6 {[%clk 0:00:42]} 23. a4 {[%clk 0:00:14]}  Bc5 {[%clk 0:00:42]} 24. Qc3 {[%clk 0:00:13]}  Bd4 {[%clk 0:00:42]} 25. Qb3 {[%clk 0:00:14]}  h6 {[%clk 0:00:42]} 26. Qg3 {[%clk 0:00:13]}  Kh7 {[%clk 0:00:42]} 27. b4 {[%clk 0:00:14]}  Rf6 {[%clk 0:00:40]} 28. a5 {[%clk 0:00:10]}  bxa5 {[%clk 0:00:39]} 29. bxa5 {[%clk 0:00:11]}  Rdf8 {[%clk 0:00:39]} 30. Kh1 {[%clk 0:00:09]}  Rxf2 {[%clk 0:00:36]} 31. Rxf2 {[%clk 0:00:09]}  Bxf2 {[%clk 0:00:37]} 32. Qc7 {[%clk 0:00:08]}  Rf6 {[%clk 0:00:37]} 33. Qd7 {[%clk 0:00:07]}  Bg3 {[%clk 0:00:29]} 34. Kg1 {[%clk 0:00:05]}  Rd6 {[%clk 0:00:27]} 35. Qg4 {[%clk 0:00:02]}  Be5 {[%clk 0:00:26]} 36. Bf1 {[%clk 0:00:03]}  h5 {[%clk 0:00:24]} 37. Qf3 {[%clk 0:00:03]}  Bd4+ {[%clk 0:00:24]} 38. Kh2 {[%clk 0:00:03]}  Rf6 {[%clk 0:00:24]} 39. Qe2 {[%clk 0:00:02]}  Rf5 {[%clk 0:00:24]} 40. Qd1 {[%clk 0:00:03]}  Be5+ {[%clk 0:00:24]} 41. g3 {[%clk 0:00:03]}  Rf2+ {[%clk 0:00:24]} 42. Kg1 {[%clk 0:00:04]}  Rb2 {[%clk 0:00:25]} 43. Bd3 {[%clk 0:00:05]}  Rb8 {[%clk 0:00:14]} 44. Bxg6+ {[%clk 0:00:05]}  Kxg6 {[%clk 0:00:15]} 45. Qd3+ {[%clk 0:00:05]}  Kf6 {[%clk 0:00:16]} 46. Qa6+ {[%clk 0:00:05]}  Kf5 {[%clk 0:00:14]} 47. Qxa7 {[%clk 0:00:06]}  Rb1+ {[%clk 0:00:15]} 48. Kf2 {[%clk 0:00:06]}  Rb2+ {[%clk 0:00:15]} 49. Ke3 {[%clk 0:00:05]}  Rb3+ {[%clk 0:00:16]} 50. Kd2 {[%clk 0:00:05]}  Rxg3 {[%clk 0:00:17]} 51. Qf7+ {[%clk 0:00:04]}  Ke4 {[%clk 0:00:17]} 52. Qxh5 {[%clk 0:00:04]}  Rg2+ {[%clk 0:00:17]} 53. Kc1 {[%clk 0:00:04]}  Rg1+ {[%clk 0:00:17]} 54. Kc2 {[%clk 0:00:04]}  Rg2+ {[%clk 0:00:18]} 55. Kb3 {[%clk 0:00:05]}  Rb2+ {[%clk 0:00:19]} 56. Ka4 {[%clk 0:00:06]}  Bf6 {[%clk 0:00:16]} 57. Qg4+ {[%clk 0:00:05]}  Kd5 {[%clk 0:00:16]} 58. a6 {[%clk 0:00:05]}  Kc5 {[%clk 0:00:16]} 59. Qf5+ {[%clk 0:00:05]}  Kb6 {[%clk 0:00:16]} 60. Qa5+ {[%clk 0:00:05]}  Ka7 {[%clk 0:00:16]} 61. Ka3 {[%clk 0:00:05]}  Rb6 {[%clk 0:00:15]} 62. Qc5 {[%clk 0:00:04]}  Kxa6 {[%clk 0:00:15]} 63. h4 {[%clk 0:00:03]}  Kb7 {[%clk 0:00:15]} 64. h5 {[%clk 0:00:03]}  Rc6 {[%clk 0:00:14]} 65. Qd5 {[%clk 0:00:03]}  Kc7 {[%clk 0:00:15]} 66. Kb4 {[%clk 0:00:04]}  Be7+ {[%clk 0:00:14]} 67. Kb3 {[%clk 0:00:03]}  Rb6+ {[%clk 0:00:15]} 68. Kc4 {[%clk 0:00:02]}  Rc6+ {[%clk 0:00:15]} 69. Kb5 {[%clk 0:00:03]}  Rb6+ {[%clk 0:00:15]} 70. Ka5 {[%clk 0:00:03]}  Rf6 {[%clk 0:00:08]} 71. Qe5+ {[%clk 0:00:03]}  Kd7 {[%clk 0:00:09]} 72. Qd4+ {[%clk 0:00:01]}  Ke8 {[%clk 0:00:09]} 73. Qg4 {[%clk 0:00:02]}  Bd8+ {[%clk 0:00:09]} 74. Kb5 {[%clk 0:00:02]}  Kf8 {[%clk 0:00:10]} 75. Qe4 {[%clk 0:00:01]}  Be7 {[%clk 0:00:10]} 76. Kc4 {[%clk 0:00:02]}  Kf7 {[%clk 0:00:11]} 77. Qg4 {[%clk 0:00:02]}  Rc6+ {[%clk 0:00:11]} 78. Kd5 {[%clk 0:00:03]}  Rd6+ {[%clk 0:00:12]} 79. Ke5 {[%clk 0:00:03]}  Rf6 {[%clk 0:00:13]} 80. Qg3 {[%clk 0:00:03]}  Kf8 {[%clk 0:00:13]} 81. Qh3 {[%clk 0:00:02]}  Bd6+ {[%clk 0:00:14]} 82. Kd5 {[%clk 0:00:03]}  Be7 {[%clk 0:00:14]} 83. Qc8+ {[%clk 0:00:03]}  Kf7 {[%clk 0:00:15]} 84. Qh8 {[%clk 0:00:03]}  Rd6+ {[%clk 0:00:16]} 85. Ke5 {[%clk 0:00:04]}  Rh6 {[%clk 0:00:17]} 86. Qc8 {[%clk 0:00:03]}  Rxh5+ {[%clk 0:00:17]} 87. Kf4 {[%clk 0:00:04]}  Rh6 {[%clk 0:00:18]} 88. Kg3 {[%clk 0:00:04]}  Rf6 {[%clk 0:00:18]} 89. Qc4+ {[%clk 0:00:04]}  Kf8 {[%clk 0:00:19]} 90. Qa4 {[%clk 0:00:05]}  Rg6+ {[%clk 0:00:19]} 91. Kf4 {[%clk 0:00:05]}  Rf6+ {[%clk 0:00:19]} 92. Kg3 {[%clk 0:00:05]}  Rh6 {[%clk 0:00:19]} 93. Qa8+ {[%clk 0:00:04]}  Kf7 {[%clk 0:00:19]} 94. Qd5+ {[%clk 0:00:05]}  Ke8 {[%clk 0:00:19]} 95. Qg8+ {[%clk 0:00:05]}  Bf8 {[%clk 0:00:20]} 96. Kg4 {[%clk 0:00:05]}  Ke7 {[%clk 0:00:19]} 97. Kg5 {[%clk 0:00:04]}  Re6 {[%clk 0:00:20]} 98. Kf5 {[%clk 0:00:04]}  Rf6+ {[%clk 0:00:20]} 99. Ke5 {[%clk 0:00:05]}  Ke8 {[%clk 0:00:20]} 100. Qd5 {[%clk 0:00:04]}  Bd6+ {[%clk 0:00:19]} 101. Ke4 {[%clk 0:00:05]}  Ke7 {[%clk 0:00:19]} 102. Qb7+ {[%clk 0:00:05]}  Kf8 {[%clk 0:00:20]} 103. Qc8+ {[%clk 0:00:05]}  Kf7 {[%clk 0:00:20]} 104. Qb7+ {[%clk 0:00:06]}  Be7 {[%clk 0:00:21]} 105. Qd7 {[%clk 0:00:07]}  Re6+ {[%clk 0:00:21]} 106. Kf5 {[%clk 0:00:07]}  Rf6+ {[%clk 0:00:21]} 107. Ke5 {[%clk 0:00:07]}  Rd6 {[%clk 0:00:17]} 108. Qf5+ {[%clk 0:00:07]}  Rf6 {[%clk 0:00:18]} 109. Qd7 {[%clk 0:00:07]}  Rh6 {[%clk 0:00:11]} 110. Qf5+ {[%clk 0:00:07]}  Bf6+ {[%clk 0:00:11]} 111. Kd6 {[%clk 0:00:07]}  Kg8 {[%clk 0:00:10]} 112. Kd7 {[%clk 0:00:06]}  Rh4 {[%clk 0:00:09]} 113. Qe6+ {[%clk 0:00:05]}  Kh7 {[%clk 0:00:09]} 114. Qf5+ {[%clk 0:00:06]}  Kh6 {[%clk 0:00:10]} 115. Ke6 {[%clk 0:00:06]}  Rh5 {[%clk 0:00:09]} 116. Qf4+ {[%clk 0:00:06]}  Kg6 {[%clk 0:00:10]} 117. Qe4+ {[%clk 0:00:05]}  Kg5 {[%clk 0:00:10]} 118. Qf5+ {[%clk 0:00:03]}  Kh6 {[%clk 0:00:11]} 119. Qg4 {[%clk 0:00:03]}  Re5+ {[%clk 0:00:10]} 120. Kf7 {[%clk 0:00:03]}  Rg5 {[%clk 0:00:11]} 121. Qh4+ {[%clk 0:00:03]}  Rh5 {[%clk 0:00:12]} 122. Qf4+ {[%clk 0:00:04]}  Kh7 {[%clk 0:00:12]} 123. Qe4+ {[%clk 0:00:03]}  Kh8 {[%clk 0:00:12]} 124. Qg6 {[%clk 0:00:03]}  Re5 {[%clk 0:00:11]} 125. Qg4 {[%clk 0:00:03]}  Bg5 {[%clk 0:00:04]} 126. Qh5+ {[%clk 0:00:03]}  Bh6 {[%clk 0:00:05]} 127. Qxe5 {[%clk 0:00:04]}  Kh7 {[%clk 0:00:05]} 128. Qf5+ {[%clk 0:00:04]}  Kh8 {[%clk 0:00:05]} 129. Qc8+ {[%clk 0:00:05]}  Kh7 {[%clk 0:00:06]} 130. Qg8# {[%clk 0:00:06]} 1-0


[Site "https://www.chess.com"]

[Event "Titled Tuesday Blitz June 13 Early 2023"]
[White "Postny, Evgeny"]
[Black "Akylbek2021"]
[WhiteFideId "2804344"]
[WhiteElo "2504"]
[BlackElo "2477"]
[Result "0-1"]
[Round "2"]
[TimeControl "180+2"]
[Date "2023.06.13"]
[WhiteClock "0:00:00"]
[BlackClock "0:00:24"]
[Board "78"]

1. e4 {[%clk 0:02:58]}  c5 {[%clk 0:02:59]} 2. Nf3 {[%clk 0:02:55]}  Nc6 {[%clk 0:02:59]} 3. Bb5 {[%clk 0:02:55]}  d6 {[%clk 0:02:58]} 4. O-O {[%clk 0:02:54]}  Bd7 {[%clk 0:02:58]} 5. c3 {[%clk 0:02:53]}  a6 {[%clk 0:02:59]} 6. Bxc6 {[%clk 0:02:52]}  Bxc6 {[%clk 0:02:59]} 7. Re1 {[%clk 0:02:51]}  Nf6 {[%clk 0:02:59]} 8. e5 {[%clk 0:02:51]}  dxe5 {[%clk 0:02:59]} 9. Nxe5 {[%clk 0:02:51]}  Qd5 {[%clk 0:02:59]} 10. Nxc6 {[%clk 0:02:50]}  Qxc6 {[%clk 0:03:00]} 11. d4 {[%clk 0:02:50]}  Rd8 {[%clk 0:03:00]} 12. Be3 {[%clk 0:02:44]}  e6 {[%clk 0:02:59]} 13. Nd2 {[%clk 0:02:42]}  Be7 {[%clk 0:02:55]} 14. Qf3 {[%clk 0:02:41]}  Nd5 {[%clk 0:02:39]} 15. Rad1 {[%clk 0:02:31]}  O-O {[%clk 0:02:38]} 16. dxc5 {[%clk 0:02:25]}  Bxc5 {[%clk 0:02:26]} 17. Bxc5 {[%clk 0:02:21]}  Qxc5 {[%clk 0:02:27]} 18. Nb3 {[%clk 0:02:12]}  Qc7 {[%clk 0:02:17]} 19. Rd2 {[%clk 0:02:11]}  Nb6 {[%clk 0:02:10]} 20. Rde2 {[%clk 0:01:50]}  Nc4 {[%clk 0:02:00]} 21. h4 {[%clk 0:01:48]}  Rd5 {[%clk 0:01:53]} 22. Nd4 {[%clk 0:01:43]}  h6 {[%clk 0:01:39]} 23. Qg4 {[%clk 0:01:19]}  Nd6 {[%clk 0:01:25]} 24. Nxe6 {[%clk 0:01:08]}  fxe6 {[%clk 0:01:22]} 25. Qxe6+ {[%clk 0:01:08]}  Qf7 {[%clk 0:01:22]} 26. Qxf7+ {[%clk 0:01:06]}  Rxf7 {[%clk 0:01:20]} 27. g3 {[%clk 0:01:02]}  g5 {[%clk 0:01:11]} 28. hxg5 {[%clk 0:01:01]}  hxg5 {[%clk 0:01:12]} 29. Re5 {[%clk 0:01:00]}  Rxe5 {[%clk 0:01:09]} 30. Rxe5 {[%clk 0:01:01]}  Rf5 {[%clk 0:01:10]} 31. Re6 {[%clk 0:00:57]}  Rd5 {[%clk 0:01:10]} 32. Re7 {[%clk 0:00:48]}  Rd2 {[%clk 0:01:06]} 33. Rd7 {[%clk 0:00:42]}  Kf8 {[%clk 0:00:58]} 34. b3 {[%clk 0:00:39]}  Ke8 {[%clk 0:00:57]} 35. Rg7 {[%clk 0:00:39]}  Ne4 {[%clk 0:00:52]} 36. Rxb7 {[%clk 0:00:32]}  Nxf2 {[%clk 0:00:50]} 37. a4 {[%clk 0:00:24]}  Ne4 {[%clk 0:00:49]} 38. c4 {[%clk 0:00:18]}  Nxg3 {[%clk 0:00:48]} 39. c5 {[%clk 0:00:15]}  Rc2 {[%clk 0:00:44]} 40. b4 {[%clk 0:00:15]}  Ne4 {[%clk 0:00:39]} 41. Rg7 {[%clk 0:00:13]}  Kf8 {[%clk 0:00:31]} 42. Rg6 {[%clk 0:00:12]}  Kf7 {[%clk 0:00:31]} 43. Rxa6 {[%clk 0:00:12]}  g4 {[%clk 0:00:32]} 44. c6 {[%clk 0:00:06]}  g3 {[%clk 0:00:32]} 45. Ra7+ {[%clk 0:00:04]}  Ke6 {[%clk 0:00:31]} 46. c7 {[%clk 0:00:04]}  Ng5 {[%clk 0:00:28]} 47. c8=Q+ {[%clk 0:00:02]}  Rxc8 {[%clk 0:00:27]} 48. Kg2 {[%clk 0:00:00]}  Ne4 {[%clk 0:00:24]} 0-1


[Site "https://www.chess.com"]

[Event "Titled Tuesday Blitz June 13 Early 2023"]
[White "Mogirzan, Matei-Valeriu"]
[Black "Danielyan, Vahe"]
[WhiteFideId "1257455"]
[BlackFideId "13304828"]
[WhiteElo "1733"]
[BlackElo "2423"]
[Result "0-1"]
[Round "2"]
[TimeControl "180+2"]
[Date "2023.06.13"]
[WhiteClock "0:00:00"]
[BlackClock "0:00:14"]
[Board "81"]

1. e4 {[%clk 0:03:00]}  c6 {[%clk 0:02:59]} 2. d4 {[%clk 0:03:00]}  d5 {[%clk 0:03:00]} 3. Nc3 {[%clk 0:03:01]}  dxe4 {[%clk 0:03:00]} 4. Nxe4 {[%clk 0:03:01]}  Nf6 {[%clk 0:03:01]} 5. Nxf6+ {[%clk 0:03:01]}  exf6 {[%clk 0:03:02]} 6. Bd3 {[%clk 0:03:01]}  Qxd4 {[%clk 0:03:00]} 7. Nf3 {[%clk 0:03:01]}  Qd8 {[%clk 0:02:58]} 8. Be3 {[%clk 0:03:01]}  Be7 {[%clk 0:02:40]} 9. Qe2 {[%clk 0:03:00]}  O-O {[%clk 0:02:34]} 10. O-O-O {[%clk 0:02:59]}  Qc7 {[%clk 0:02:34]} 11. h4 {[%clk 0:02:59]}  Bg4 {[%clk 0:02:31]} 12. Bxh7+ {[%clk 0:02:55]}  Kh8 {[%clk 0:02:12]} 13. Bd3 {[%clk 0:02:50]}  Nd7 {[%clk 0:02:11]} 14. Bd4 {[%clk 0:02:32]}  Rfe8 {[%clk 0:01:58]} 15. Qd2 {[%clk 0:02:11]}  Bd6 {[%clk 0:01:58]} 16. Kb1 {[%clk 0:02:09]}  Ne5 {[%clk 0:01:50]} 17. Bxe5 {[%clk 0:01:29]}  Bxe5 {[%clk 0:01:41]} 18. Qb4 {[%clk 0:01:18]}  Qb6 {[%clk 0:01:22]} 19. Qxb6 {[%clk 0:01:08]}  axb6 {[%clk 0:01:23]} 20. Nxe5 {[%clk 0:01:02]}  Rxe5 {[%clk 0:01:02]} 21. f3 {[%clk 0:01:00]}  Be6 {[%clk 0:01:01]} 22. b3 {[%clk 0:00:57]}  Rea5 {[%clk 0:00:39]} 23. a4 {[%clk 0:00:54]}  b5 {[%clk 0:00:40]} 24. axb5 {[%clk 0:00:52]}  cxb5 {[%clk 0:00:41]} 25. Kc1 {[%clk 0:00:42]}  Rd8 {[%clk 0:00:37]} 26. Kd2 {[%clk 0:00:37]}  Ra2 {[%clk 0:00:37]} 27. Ra1 {[%clk 0:00:30]}  Bxb3 {[%clk 0:00:34]} 28. Kc3 {[%clk 0:00:23]}  Rxa1 {[%clk 0:00:24]} 29. Rxa1 {[%clk 0:00:24]}  Bc4 {[%clk 0:00:24]} 30. Bxc4 {[%clk 0:00:21]}  Rc8 {[%clk 0:00:25]} 31. Ra7 {[%clk 0:00:07]}  Rxc4+ {[%clk 0:00:25]} 32. Kd3 {[%clk 0:00:07]}  Rxh4 {[%clk 0:00:20]} 33. Rxb7 {[%clk 0:00:07]}  b4 {[%clk 0:00:15]} 34. Rxf7 {[%clk 0:00:06]}  Rh2 {[%clk 0:00:15]} 35. Rb7 {[%clk 0:00:06]}  Rxg2 {[%clk 0:00:15]} 36. Rxb4 {[%clk 0:00:06]}  Rf2 {[%clk 0:00:16]} 37. Rf4 {[%clk 0:00:05]}  Kg8 {[%clk 0:00:16]} 38. c4 {[%clk 0:00:05]}  Kf7 {[%clk 0:00:16]} 39. Ke3 {[%clk 0:00:03]}  Rc2 {[%clk 0:00:16]} 40. Rd4 {[%clk 0:00:04]}  Ke6 {[%clk 0:00:15]} 41. Re4+ {[%clk 0:00:03]}  Kd6 {[%clk 0:00:15]} 42. Rd4+ {[%clk 0:00:03]}  Kc6 {[%clk 0:00:15]} 43. Re4 {[%clk 0:00:04]}  Rc1 {[%clk 0:00:15]} 44. Rg4 {[%clk 0:00:04]}  g5 {[%clk 0:00:14]} 45. Re4 {[%clk 0:00:04]}  Kd6 {[%clk 0:00:13]} 46. Rd4+ {[%clk 0:00:04]}  Ke5 {[%clk 0:00:13]} 47. Rd5+ {[%clk 0:00:03]}  Ke6 {[%clk 0:00:14]} 48. Rd4 {[%clk 0:00:03]}  Rc3+ {[%clk 0:00:13]} 49. Ke2 {[%clk 0:00:03]}  Ke5 {[%clk 0:00:14]} 50. Re4+ {[%clk 0:00:03]}  Kf5 {[%clk 0:00:14]} 51. Kf2 {[%clk 0:00:03]}  Kg6 {[%clk 0:00:14]} 52. Kg3 {[%clk 0:00:03]}  f5 {[%clk 0:00:14]} 53. Re6+ {[%clk 0:00:03]}  Kf7 {[%clk 0:00:15]} 54. Rc6 {[%clk 0:00:00]}  g4 {[%clk 0:00:14]} 0-1


[Site "https://www.chess.com"]

[Event "Titled Tuesday Blitz June 13 Early 2023"]
[White "a-z30"]
[Black "Rastbod, Ali"]
[BlackFideId "12567477"]
[WhiteElo "2430"]
[BlackElo "2281"]
[Result "1-0"]
[Round "2"]
[TimeControl "180+2"]
[Date "2023.06.13"]
[WhiteClock "0:00:04"]
[BlackClock "0:00:00"]
[Board "82"]

1. d3 {[%clk 0:03:00]}  d5 {[%clk 0:03:00]} 2. Nf3 {[%clk 0:03:01]}  Nf6 {[%clk 0:03:00]} 3. g3 {[%clk 0:03:01]}  g6 {[%clk 0:03:00]} 4. Bg2 {[%clk 0:03:02]}  Bg7 {[%clk 0:03:00]} 5. O-O {[%clk 0:03:03]}  O-O {[%clk 0:03:01]} 6. c4 {[%clk 0:03:04]}  d4 {[%clk 0:02:59]} 7. b4 {[%clk 0:03:02]}  a5 {[%clk 0:02:59]} 8. b5 {[%clk 0:03:02]}  c5 {[%clk 0:02:59]} 9. a4 {[%clk 0:03:02]}  b6 {[%clk 0:02:59]} 10. Ra2 {[%clk 0:03:00]}  Ra7 {[%clk 0:02:58]} 11. e4 {[%clk 0:02:50]}  dxe3 {[%clk 0:02:56]} 12. Bxe3 {[%clk 0:02:49]}  Bg4 {[%clk 0:02:45]} 13. h3 {[%clk 0:02:19]}  Bxf3 {[%clk 0:02:44]} 14. Bxf3 {[%clk 0:02:19]}  Nbd7 {[%clk 0:02:44]} 15. Nc3 {[%clk 0:02:19]}  Ne5 {[%clk 0:02:44]} 16. Be2 {[%clk 0:02:14]}  Rd7 {[%clk 0:02:21]} 17. Rd2 {[%clk 0:02:13]}  Ne8 {[%clk 0:02:21]} 18. Ne4 {[%clk 0:02:00]}  f5 {[%clk 0:01:11]} 19. Ng5 {[%clk 0:01:59]}  Nc7 {[%clk 0:01:12]} 20. Bf4 {[%clk 0:01:16]}  h6 {[%clk 0:01:07]} 21. Bxe5 {[%clk 0:01:13]}  Bxe5 {[%clk 0:01:06]} 22. Nf3 {[%clk 0:01:00]}  Bc3 {[%clk 0:01:07]} 23. Rc2 {[%clk 0:00:58]}  Bf6 {[%clk 0:01:07]} 24. Re1 {[%clk 0:00:52]}  e5 {[%clk 0:01:06]} 25. Qc1 {[%clk 0:00:48]}  Kg7 {[%clk 0:01:06]} 26. Bf1 {[%clk 0:00:47]}  Re8 {[%clk 0:01:06]} 27. Rce2 {[%clk 0:00:44]}  Rde7 {[%clk 0:01:06]} 28. Re3 {[%clk 0:00:39]}  Qd6 {[%clk 0:01:04]} 29. h4 {[%clk 0:00:34]}  Ne6 {[%clk 0:00:43]} 30. Nxe5 {[%clk 0:00:32]}  Nd4 {[%clk 0:00:36]} 31. Nc6 {[%clk 0:00:25]}  Nxc6 {[%clk 0:00:18]} 32. bxc6 {[%clk 0:00:25]}  Qxc6 {[%clk 0:00:17]} 33. Rxe7+ {[%clk 0:00:24]}  Rxe7 {[%clk 0:00:17]} 34. Rxe7+ {[%clk 0:00:24]}  Bxe7 {[%clk 0:00:18]} 35. Qd1 {[%clk 0:00:19]}  Bf6 {[%clk 0:00:15]} 36. h5 {[%clk 0:00:19]}  Bd4 {[%clk 0:00:15]} 37. Bg2 {[%clk 0:00:18]}  Qd6 {[%clk 0:00:13]} 38. Qf3 {[%clk 0:00:18]}  Qe7 {[%clk 0:00:13]} 39. hxg6 {[%clk 0:00:16]}  Kxg6 {[%clk 0:00:13]} 40. Qc6+ {[%clk 0:00:15]}  Kg7 {[%clk 0:00:14]} 41. Qf3 {[%clk 0:00:08]}  Qe1+ {[%clk 0:00:11]} 42. Bf1 {[%clk 0:00:08]}  Kf6 {[%clk 0:00:10]} 43. Qc6+ {[%clk 0:00:07]}  Kg7 {[%clk 0:00:08]} 44. Qf3 {[%clk 0:00:08]}  Qe6 {[%clk 0:00:06]} 45. Bg2 {[%clk 0:00:07]}  Qf7 {[%clk 0:00:05]} 46. Bh3 {[%clk 0:00:07]}  f4 {[%clk 0:00:03]} 47. Qxf4 {[%clk 0:00:06]}  Qxf4 {[%clk 0:00:03]} 48. gxf4 {[%clk 0:00:07]}  Kf6 {[%clk 0:00:04]} 49. Kg2 {[%clk 0:00:07]}  Bc3 {[%clk 0:00:05]} 50. Kf3 {[%clk 0:00:07]}  Bb4 {[%clk 0:00:05]} 51. Ke4 {[%clk 0:00:07]}  Be1 {[%clk 0:00:05]} 52. f3 {[%clk 0:00:07]}  Bd2 {[%clk 0:00:06]} 53. Bf5 {[%clk 0:00:07]}  h5 {[%clk 0:00:06]} 54. Bh3 {[%clk 0:00:07]}  h4 {[%clk 0:00:06]} 55. Bg4 {[%clk 0:00:07]}  Be1 {[%clk 0:00:06]} 56. Bh3 {[%clk 0:00:07]}  Bb4 {[%clk 0:00:06]} 57. Kd5 {[%clk 0:00:06]}  Bd2 {[%clk 0:00:05]} 58. Kc6 {[%clk 0:00:05]}  Bb4 {[%clk 0:00:05]} 59. Kxb6 {[%clk 0:00:05]}  Kg6 {[%clk 0:00:05]} 60. Kc6 {[%clk 0:00:05]}  Kf6 {[%clk 0:00:06]} 61. Kd5 {[%clk 0:00:06]}  Bd2 {[%clk 0:00:03]} 62. Ke4 {[%clk 0:00:07]}  Bc3 {[%clk 0:00:03]} 63. f5 {[%clk 0:00:04]}  Bd4 {[%clk 0:00:03]} 64. f4 {[%clk 0:00:05]}  Bc3 {[%clk 0:00:03]} 65. Kd5 {[%clk 0:00:05]}  Bd4 {[%clk 0:00:04]} 66. Kc6 {[%clk 0:00:05]}  Be3 {[%clk 0:00:03]} 67. Kb5 {[%clk 0:00:05]}  Bxf4 {[%clk 0:00:04]} 68. Kxa5 {[%clk 0:00:04]}  Ke5 {[%clk 0:00:04]} 69. Kb6 {[%clk 0:00:04]}  Kd4 {[%clk 0:00:00]} 70. a5 {[%clk 0:00:04]} 1-0


[Site "https://www.chess.com"]